Workbook

Sheet Розрахунок
A1: 0 | P1: 2021-04-07
A2: 0 | M2: ="Кредобанк"&" "&F11&" "&F12&" "&"аванс"&" "&F14*100&"%" -> Кредобанк аванс 60%
A3: 0
A4: 0
A5: 0
A6: 0
A7: 0
A8: 0
A9: 0 | J9: курс валют
A10: 0 | B10: Програма кредитування | F10: Легкові авто для Бізнесу Fiat 0,0% за видачу | J10: EUR
A11: 0 | B11: Марка автомобіля | J11: USD
A12: 0 | B12: Модель автомобіля | J12: GBP
A13: 0 | B13: Вартість автомобіля | F13: 1700000 | G13: UAH | H13: =F13*IF(G13=J10,K10,IF(G13=J11,K11,IF(G13=J12,K12,IF(G13=J13,K13,1)))) -> 1700000 | J13: PLN
A14: 0 | B14: Внесок вл. коштами | F14: 0.6
A15: 0 | B15: Сума кредиту | F15: =H13*(1-F14) -> 680000
A16: 0 | B16: Термін,місяців | F16: 48
A17: 0 | B17: Графік погашення | F17: рівномірний
A18: 1 | B18: Відтермінування | F18: відсутнє
A19: 1 | B19: Період відтермінування | F19: 0
A20: 1 | B20: Тип відсоткової ставки | F20: фіксована
A21: 1
A22: 0 | B22: Відсоткова ставка | F22: =VLOOKUP(F10,тарифи!A30:G199,6,0) -> 0.034
A23: 1 | B23: % ставка з 2-го року кредитування
A24: 1 | B24: Комісії:
A25: 0 | B25: Одноразова комісія | F25: =VLOOKUP(F10,тарифи!A30:G199,7,0) -> 0
A26: 0 | B26: Дата видачі кредиту | F26: 2021-03-01
A27: 0 | B27: Страхування КАСКО | F27: 0.065 | G27: =F13*F27 -> 110500
A28: 1
A29: 1
A30: 0 | G30: Всього сплачених відсотків | H30: Всього сплачені комісії | I30: Всього переплата клієнта
A31: 0 | G31: =SUM(G33:G392) -> 47203.33333 | H31: =H33 -> 0 | I31: =SUM(G31:H31) -> 47203.33333
A32: 0 | B32: Місяць | E32: Залишок на початок місяця | F32: Погашення тіла кредиту | G32: Погашення %-ів за кредит | H32: Разова комісія (за видачу) | I32: Всього платіж в місяць
A33: =IF(C33="",1,0) -> 0 | C33: 1 | D33: =DATE(YEAR(F26),MONTH(EOMONTH(F26,0)+1),DAY(30)) -> 2021-04-30 | E33: =IF((C33>$F$16),0,IF($F$17=$AH$134,AW152,IF($F$18=$AE$133,AA152,AL152))) -> 680000 | F33: =IF((C33>$F$16),0,IF($F$17=$AH$134,AX152,IF($F$18=$AE$133,AB152,AM152))) -> 14166.66667 | G33: =IF((C33>$F$16),0,IF($F$17=$AH$134,AY152,IF($F$18=$AE$133,AC152,AN152))) -> 1926.666667 | H33: =F15*F25 -> 0 | I33: =IF((C33>$F$16),0,IF($F$17=$AH$134,BC152,IF($F$18=$AE$133,AG152,AR152))) -> 16093.33333
A34: =IF(C34="",1,0) -> 0 | C34: =IF(C33<$F$16,C33+1,"") -> 2 | D34: =IF(C34>$F$16,"",EOMONTH(D33,1)) -> 2021-05-31 | E34: 665833.3333 | F34: 14166.66667 | G34: 1886.527778 | I34: 16053.19444
A35: 0 | C35: =IF(C34<$F$16,C34+1,"") -> 3 | D35: =IF(C35>$F$16,"",EOMONTH(D34,1)) -> 2021-06-30 | E35: 651666.6667 | F35: 14166.66667 | G35: 1846.388889 | I35: 16013.05556
A36: 0 | C36: =IF(C35<$F$16,C35+1,"") -> 4 | D36: 2021-07-31 | E36: 637500 | F36: 14166.66667 | G36: 1806.25 | I36: 15972.91667
A37: 0 | C37: =IF(C36<$F$16,C36+1,"") -> 5 | D37: 2021-08-31 | E37: 623333.3333 | F37: 14166.66667 | G37: 1766.111111 | I37: 15932.77778
A38: 0 | C38: =IF(C37<$F$16,C37+1,"") -> 6 | D38: 2021-09-30 | E38: 609166.6667 | F38: 14166.66667 | G38: 1725.972222 | I38: 15892.63889
A39: 0 | C39: =IF(C38<$F$16,C38+1,"") -> 7 | D39: 2021-10-31 | E39: 595000 | F39: 14166.66667 | G39: 1685.833333 | I39: 15852.5
A40: 0 | C40: =IF(C39<$F$16,C39+1,"") -> 8 | D40: 2021-11-30 | E40: 580833.3333 | F40: 14166.66667 | G40: 1645.694444 | I40: 15812.36111
A41: 0 | C41: =IF(C40<$F$16,C40+1,"") -> 9 | D41: 2021-12-31 | E41: 566666.6667 | F41: 14166.66667 | G41: 1605.555556 | I41: 15772.22222
A42: 0 | C42: =IF(C41<$F$16,C41+1,"") -> 10 | D42: 2022-01-31 | E42: 552500 | F42: 14166.66667 | G42: 1565.416667 | I42: 15732.08333
A43: 0 | C43: =IF(C42<$F$16,C42+1,"") -> 11 | D43: 2022-02-28 | E43: 538333.3333 | F43: 14166.66667 | G43: 1525.277778 | I43: 15691.94444
A44: 0 | C44: =IF(C43<$F$16,C43+1,"") -> 12 | D44: 2022-03-31 | E44: 524166.6667 | F44: 14166.66667 | G44: 1485.138889 | I44: 15651.80556
A45: 0 | C45: =IF(C44<$F$16,C44+1,"") -> 13 | D45: 2022-04-30 | E45: 510000 | F45: 14166.66667 | G45: 1445 | I45: 15611.66667
A46: 0 | C46: =IF(C45<$F$16,C45+1,"") -> 14 | D46: 2022-05-31 | E46: 495833.3333 | F46: 14166.66667 | G46: 1404.861111 | I46: 15571.52778
A47: 0 | C47: =IF(C46<$F$16,C46+1,"") -> 15 | D47: 2022-06-30 | E47: 481666.6667 | F47: 14166.66667 | G47: 1364.722222 | I47: 15531.38889
A48: 0 | C48: =IF(C47<$F$16,C47+1,"") -> 16 | D48: 2022-07-31 | E48: 467500 | F48: 14166.66667 | G48: 1324.583333 | I48: 15491.25
A49: 0 | C49: =IF(C48<$F$16,C48+1,"") -> 17 | D49: 2022-08-31 | E49: 453333.3333 | F49: 14166.66667 | G49: 1284.444444 | I49: 15451.11111
A50: 0 | C50: =IF(C49<$F$16,C49+1,"") -> 18 | D50: 2022-09-30 | E50: 439166.6667 | F50: 14166.66667 | G50: 1244.305556 | I50: 15410.97222
A51: 0 | C51: =IF(C50<$F$16,C50+1,"") -> 19 | D51: 2022-10-31 | E51: 425000 | F51: 14166.66667 | G51: 1204.166667 | I51: 15370.83333
A52: 0 | C52: =IF(C51<$F$16,C51+1,"") -> 20 | D52: 2022-11-30 | E52: 410833.3333 | F52: 14166.66667 | G52: 1164.027778 | I52: 15330.69444
A53: 0 | C53: =IF(C52<$F$16,C52+1,"") -> 21 | D53: 2022-12-31 | E53: 396666.6667 | F53: 14166.66667 | G53: 1123.888889 | I53: 15290.55556
A54: 0 | C54: =IF(C53<$F$16,C53+1,"") -> 22 | D54: 2023-01-31 | E54: 382500 | F54: 14166.66667 | G54: 1083.75 | I54: 15250.41667
A55: 0 | C55: =IF(C54<$F$16,C54+1,"") -> 23 | D55: 2023-02-28 | E55: 368333.3333 | F55: 14166.66667 | G55: 1043.611111 | I55: 15210.27778
A56: 0 | C56: =IF(C55<$F$16,C55+1,"") -> 24 | D56: 2023-03-31 | E56: 354166.6667 | F56: 14166.66667 | G56: 1003.472222 | I56: 15170.13889
A57: 0 | C57: =IF(C56<$F$16,C56+1,"") -> 25 | D57: 2023-04-30 | E57: 340000 | F57: 14166.66667 | G57: 963.3333333 | I57: 15130
A58: 0 | C58: =IF(C57<$F$16,C57+1,"") -> 26 | D58: 2023-05-31 | E58: 325833.3333 | F58: 14166.66667 | G58: 923.1944444 | I58: 15089.86111
A59: 0 | C59: =IF(C58<$F$16,C58+1,"") -> 27 | D59: 2023-06-30 | E59: 311666.6667 | F59: 14166.66667 | G59: 883.0555556 | I59: 15049.72222
A60: 0 | C60: =IF(C59<$F$16,C59+1,"") -> 28 | D60: 2023-07-31 | E60: 297500 | F60: 14166.66667 | G60: 842.9166667 | I60: 15009.58333
A61: 0 | C61: =IF(C60<$F$16,C60+1,"") -> 29 | D61: 2023-08-31 | E61: 283333.3333 | F61: 14166.66667 | G61: 802.7777778 | I61: 14969.44444
A62: 0 | C62: =IF(C61<$F$16,C61+1,"") -> 30 | D62: 2023-09-30 | E62: 269166.6667 | F62: 14166.66667 | G62: 762.6388889 | I62: 14929.30556
A63: 0 | C63: =IF(C62<$F$16,C62+1,"") -> 31 | D63: 2023-10-31 | E63: 255000 | F63: 14166.66667 | G63: 722.5 | I63: 14889.16667
A64: 0 | C64: =IF(C63<$F$16,C63+1,"") -> 32 | D64: 2023-11-30 | E64: 240833.3333 | F64: 14166.66667 | G64: 682.3611111 | I64: 14849.02778
A65: 0 | C65: =IF(C64<$F$16,C64+1,"") -> 33 | D65: 2023-12-31 | E65: =IF((C65>$F$16),0,IF($F$17=$AH$134,AW184,IF($F$18=$AE$133,AA184,AL184))) -> 226666.6667 | F65: =IF((C65>$F$16),0,IF($F$17=$AH$134,AX184,IF($F$18=$AE$133,AB184,AM184))) -> 14166.66667 | G65: =IF((C65>$F$16),0,IF($F$17=$AH$134,AY184,IF($F$18=$AE$133,AC184,AN184))) -> 642.2222222 | I65: =IF((C65>$F$16),0,IF($F$17=$AH$134,BC184,IF($F$18=$AE$133,AG184,AR184))) -> 14808.88889
A66: 0 | C66: =IF(C65<$F$16,C65+1,"") -> 34 | D66: 2024-01-31 | E66: 212500 | F66: 14166.66667 | G66: 602.0833333 | I66: 14768.75
A67: 0 | C67: =IF(C66<$F$16,C66+1,"") -> 35 | D67: 2024-02-29 | E67: 198333.3333 | F67: 14166.66667 | G67: 561.9444444 | I67: 14728.61111
A68: 0 | C68: =IF(C67<$F$16,C67+1,"") -> 36 | D68: 2024-03-31 | E68: 184166.6667 | F68: 14166.66667 | G68: 521.8055556 | I68: 14688.47222
A69: 0 | C69: =IF(C68<$F$16,C68+1,"") -> 37 | D69: 2024-04-30 | E69: 170000 | F69: 14166.66667 | G69: 481.6666667 | I69: 14648.33333
A70: 0 | C70: =IF(C69<$F$16,C69+1,"") -> 38 | D70: 2024-05-31 | E70: 155833.3333 | F70: 14166.66667 | G70: 441.5277778 | I70: 14608.19444
A71: 0 | C71: =IF(C70<$F$16,C70+1,"") -> 39 | D71: 2024-06-30 | E71: 141666.6667 | F71: 14166.66667 | G71: 401.3888889 | I71: 14568.05556
A72: 0 | C72: =IF(C71<$F$16,C71+1,"") -> 40 | D72: 2024-07-31 | E72: 127500 | F72: 14166.66667 | G72: 361.25 | I72: 14527.91667
A73: 0 | C73: =IF(C72<$F$16,C72+1,"") -> 41 | D73: 2024-08-31 | E73: 113333.3333 | F73: 14166.66667 | G73: 321.1111111 | I73: 14487.77778
A74: 0 | C74: =IF(C73<$F$16,C73+1,"") -> 42 | D74: 2024-09-30 | E74: 99166.66667 | F74: 14166.66667 | G74: 280.9722222 | I74: 14447.63889
A75: 0 | C75: =IF(C74<$F$16,C74+1,"") -> 43 | D75: 2024-10-31 | E75: 85000 | F75: 14166.66667 | G75: 240.8333333 | I75: 14407.5
A76: 0 | C76: =IF(C75<$F$16,C75+1,"") -> 44 | D76: 2024-11-30 | E76: 70833.33333 | F76: 14166.66667 | G76: 200.6944444 | I76: 14367.36111
A77: 0 | C77: =IF(C76<$F$16,C76+1,"") -> 45 | D77: 2024-12-31 | E77: 56666.66667 | F77: 14166.66667 | G77: 160.5555556 | I77: 14327.22222
A78: 0 | C78: =IF(C77<$F$16,C77+1,"") -> 46 | D78: 2025-01-31 | E78: 42500 | F78: 14166.66667 | G78: 120.4166667 | I78: 14287.08333
A79: 0 | C79: =IF(C78<$F$16,C78+1,"") -> 47 | D79: 2025-02-28 | E79: 28333.33333 | F79: 14166.66667 | G79: 80.27777778 | I79: 14246.94444
A80: 0 | C80: =IF(C79<$F$16,C79+1,"") -> 48 | D80: 2025-03-31 | E80: 14166.66667 | F80: 14166.66667 | G80: 40.13888889 | I80: 14206.80556
A81: 1 | C81: =IF(C80<$F$16,C80+1,"") ->  | E81: 0 | F81: 0 | G81: 0 | I81: 0
A82: 1 | C82: =IF(C81<$F$16,C81+1,"") ->  | E82: 0 | F82: 0 | G82: 0 | I82: 0
A83: 1 | C83: =IF(C82<$F$16,C82+1,"") ->  | E83: 0 | F83: 0 | G83: 0 | I83: 0
A84: 1 | C84: =IF(C83<$F$16,C83+1,"") ->  | E84: 0 | F84: 0 | G84: 0 | I84: 0
A85: 1 | C85: =IF(C84<$F$16,C84+1,"") ->  | E85: 0 | F85: 0 | G85: 0 | I85: 0
A86: 1 | C86: =IF(C85<$F$16,C85+1,"") ->  | E86: 0 | F86: 0 | G86: 0 | I86: 0
A87: 1 | C87: =IF(C86<$F$16,C86+1,"") ->  | E87: 0 | F87: 0 | G87: 0 | I87: 0
A88: 1 | C88: =IF(C87<$F$16,C87+1,"") ->  | E88: 0 | F88: 0 | G88: 0 | I88: 0
A89: 1 | C89: =IF(C88<$F$16,C88+1,"") ->  | E89: 0 | F89: 0 | G89: 0 | I89: 0
A90: 1 | C90: =IF(C89<$F$16,C89+1,"") ->  | E90: 0 | F90: 0 | G90: 0 | I90: 0
A91: 1 | C91: =IF(C90<$F$16,C90+1,"") ->  | E91: 0 | F91: 0 | G91: 0 | I91: 0
A92: 1 | C92: =IF(C91<$F$16,C91+1,"") ->  | E92: 0 | F92: 0 | G92: 0 | I92: 0
AE129: =TODAY() -> 2021-04-05 | AM129: UAH | AN129: 0.3 | AO129: 12
AL130: так | AM130: USD | AN130: 0.4 | AO130: 24
AL131: ні | AM131: EUR | AN131: 0.5 | AO131: 36
AN132: 0.6 | AO132: 48
AE133: щорічне | AH133: рівномірний | AI133: неможливо | AK133: фіксована | AO133: 60
AE134: в перший рік кредитування | AH134: ануїтетний | AK134: змінна
AE135: відсутнє
AN150: класичний графік | AY150: =AH134 -> ануїтетний
AK151: Місяць | AL151: Залишок на початок місяця | AM151: Погашення тіла кредиту | AN151: Погашення %-ів за кредит | AO151: Разова комісія (за видачу) | AP151: Комісія за управління кредитом | AQ151: Комісія за розгляд заявки | AR151: Всього платіж в місяць | AV151: Місяць | AW151: Залишок на початок місяця | AX151: Погашення тіла кредиту | AY151: Погашення %-ів за кредит | AZ151: Разова комісія (за видачу) | BA151: Комісія за управління кредитом | BB151: Комісія за розгляд заявки | BC151: Всього платіж в місяць
AI152: =DATE(YEAR(F26),MONTH(EOMONTH(F26,0)),DAY(30)) -> 2021-03-30 | AJ152: 1 | AK152: 1 | AL152: =F15 -> 680000 | AM152: =IF(OR(AK152<=$F$19,AK152=""),0,$F$15/(($F$16)-$F$19)) -> 14166.66667 | AN152: =IF(AK152>$F$16,"",AL152*$F$22/12) -> 1926.666667 | AO152: =F15*F25 -> 0 | AR152: =IF(AK152>$F$16,"",SUM(AM152:AQ152)) -> 16093.33333 | AT152: =DATE(YEAR(F26),MONTH(EOMONTH(F26,0)),DAY(30)) -> 2021-03-30 | AU152: 1 | AV152: 1 | AW152: =F15 -> 680000 | AX152: =BC152-AY152 -> 13245.19129 | AY152: =IF(AV152>$F$16,"",AW152*$F$22/12) -> 1926.666667 | AZ152: =F15*F25 -> 0 | BC152: =IF(AV152>$F$16,"",$AW$152*(1+$F$22/12)^$F$16*$F$22/12/((1+$F$22/12)^$F$16-1)) -> 15171.85796
AI153: =IF(C34>$F$16,"",EOMONTH(D33,1)) -> 2021-05-31 | AJ153: 2 | AK153: =IF(AK152<$F$16,AK152+1,"") -> 2 | AL153: =IF(AK153>$F$16,"",AL152-AM152) -> 665833.3333 | AM153: 14166.66667 | AN153: =IF(AK153>$F$16,"",AL153*$F$22/12) -> 1886.527778 | AR153: 16053.19444 | AT153: =IF(C34>$F$16,"",EOMONTH(D33,1)) -> 2021-05-31 | AU153: 2 | AV153: =IF(AV152<$F$16,AV152+1,"") -> 2 | AW153: =IF(AV153>$F$16,"",AW152-AX152) -> 666754.8087 | AX153: =BC153-AY153 -> 13282.71934 | AY153: 1889.138625 | BC153: 15171.85796
AI154: 2021-06-30 | AJ154: 3 | AK154: =IF(AK153<$F$16,AK153+1,"") -> 3 | AL154: 651666.6667 | AM154: 14166.66667 | AN154: 1846.388889 | AR154: 16013.05556 | AT154: 2021-06-30 | AU154: 3 | AV154: =IF(AV153<$F$16,AV153+1,"") -> 3 | AW154: 653472.0894 | AX154: 13320.35371 | AY154: 1851.504253 | BC154: 15171.85796
AI155: 2021-07-31 | AJ155: 4 | AK155: =IF(AK154<$F$16,AK154+1,"") -> 4 | AL155: 637500 | AM155: 14166.66667 | AN155: 1806.25 | AR155: 15972.91667 | AT155: 2021-07-31 | AU155: 4 | AV155: =IF(AV154<$F$16,AV154+1,"") -> 4 | AW155: 640151.7357 | AX155: 13358.09471 | AY155: 1813.763251 | BC155: 15171.85796
AI156: 2021-08-31 | AJ156: 5 | AK156: 5 | AL156: 623333.3333 | AM156: 14166.66667 | AN156: 1766.111111 | AR156: 15932.77778 | AT156: 2021-08-31 | AU156: 5 | AV156: 5 | AW156: 626793.641 | AX156: 13395.94265 | AY156: 1775.915316 | BC156: 15171.85796
AI157: 2021-09-30 | AJ157: 6 | AK157: 6 | AL157: 609166.6667 | AM157: 14166.66667 | AN157: 1725.972222 | AR157: 15892.63889 | AT157: 2021-09-30 | AU157: 6 | AV157: 6 | AW157: 613397.6983 | AX157: 13433.89782 | AY157: 1737.960145 | BC157: 15171.85796
AI158: 2021-10-31 | AJ158: 7 | AK158: 7 | AL158: 595000 | AM158: 14166.66667 | AN158: 1685.833333 | AR158: 15852.5 | AT158: 2021-10-31 | AU158: 7 | AV158: 7 | AW158: 599963.8005 | AX158: 13471.96053 | AY158: 1699.897435 | BC158: 15171.85796
AI159: 2021-11-30 | AJ159: 8 | AK159: 8 | AL159: 580833.3333 | AM159: 14166.66667 | AN159: 1645.694444 | AR159: 15812.36111 | AT159: 2021-11-30 | AU159: 8 | AV159: 8 | AW159: 586491.84 | AX159: 13510.13108 | AY159: 1661.72688 | BC159: 15171.85796
AI160: 2021-12-31 | AJ160: 9 | AK160: 9 | AL160: 566666.6667 | AM160: 14166.66667 | AN160: 1605.555556 | AR160: 15772.22222 | AT160: 2021-12-31 | AU160: 9 | AV160: 9 | AW160: 572981.7089 | AX160: 13548.40979 | AY160: 1623.448175 | BC160: 15171.85796
AI161: 2022-01-31 | AJ161: 10 | AK161: 10 | AL161: 552500 | AM161: 14166.66667 | AN161: 1565.416667 | AR161: 15732.08333 | AT161: 2022-01-31 | AU161: 10 | AV161: 10 | AW161: 559433.2991 | AX161: 13586.79695 | AY161: 1585.061014 | BC161: 15171.85796
AI162: 2022-02-28 | AJ162: 11 | AK162: 11 | AL162: 538333.3333 | AM162: 14166.66667 | AN162: 1525.277778 | AR162: 15691.94444 | AT162: 2022-02-28 | AU162: 11 | AV162: 11 | AW162: 545846.5022 | AX162: 13625.29287 | AY162: 1546.565089 | BC162: 15171.85796
AI163: 2022-03-31 | AJ163: 12 | AK163: 12 | AL163: 524166.6667 | AM163: 14166.66667 | AN163: 1485.138889 | AR163: 15651.80556 | AT163: 2022-03-31 | AU163: 12 | AV163: 12 | AW163: 532221.2093 | AX163: 13663.89787 | AY163: 1507.960093 | BC163: 15171.85796
AI164: 2022-04-30 | AJ164: 1 | AK164: 13 | AL164: 510000 | AM164: 14166.66667 | AN164: =IF(AK164>$F$16,"",AL164*IF($F$20=$AK$133,$F$22,$F$23)/12) -> 1445 | AR164: 15611.66667 | AT164: 2022-04-30 | AU164: 1 | AV164: 13 | AW164: 518557.3114 | AX164: 13702.61225 | AY164: 1469.245716 | BC164: 15171.85796
AI165: 2022-05-31 | AJ165: 2 | AK165: 14 | AL165: 495833.3333 | AM165: 14166.66667 | AN165: 1404.861111 | AR165: 15571.52778 | AT165: 2022-05-31 | AU165: 2 | AV165: 14 | AW165: 504854.6992 | AX165: 13741.43631 | AY165: 1430.421648 | BC165: 15171.85796
AI166: 2022-06-30 | AJ166: 3 | AK166: 15 | AL166: 481666.6667 | AM166: 14166.66667 | AN166: 1364.722222 | AR166: 15531.38889 | AT166: 2022-06-30 | AU166: 3 | AV166: 15 | AW166: 491113.2629 | AX166: 13780.37038 | AY166: 1391.487578 | BC166: 15171.85796
AI167: 2022-07-31 | AJ167: 4 | AK167: 16 | AL167: 467500 | AM167: 14166.66667 | AN167: 1324.583333 | AR167: 15491.25 | AT167: 2022-07-31 | AU167: 4 | AV167: 16 | AW167: 477332.8925 | AX167: 13819.41477 | AY167: 1352.443195 | BC167: 15171.85796
AI168: 2022-08-31 | AJ168: 5 | AK168: 17 | AL168: 453333.3333 | AM168: 14166.66667 | AN168: 1284.444444 | AR168: 15451.11111 | AT168: 2022-08-31 | AU168: 5 | AV168: 17 | AW168: 463513.4777 | AX168: 13858.56977 | AY168: 1313.288187 | BC168: 15171.85796
AI169: 2022-09-30 | AJ169: 6 | AK169: 18 | AL169: 439166.6667 | AM169: 14166.66667 | AN169: 1244.305556 | AR169: 15410.97222 | AT169: 2022-09-30 | AU169: 6 | AV169: 18 | AW169: 449654.9079 | AX169: 13897.83572 | AY169: 1274.022239 | BC169: 15171.85796
AI170: 2022-10-31 | AJ170: 7 | AK170: 19 | AL170: 425000 | AM170: 14166.66667 | AN170: 1204.166667 | AR170: 15370.83333 | AT170: 2022-10-31 | AU170: 7 | AV170: 19 | AW170: 435757.0722 | AX170: 13937.21292 | AY170: 1234.645038 | BC170: 15171.85796
AI171: 2022-11-30 | AJ171: 8 | AK171: 20 | AL171: 410833.3333 | AM171: 14166.66667 | AN171: 1164.027778 | AR171: 15330.69444 | AT171: 2022-11-30 | AU171: 8 | AV171: 20 | AW171: 421819.8593 | AX171: 13976.70169 | AY171: 1195.156268 | BC171: 15171.85796
AI172: 2022-12-31 | AJ172: 9 | AK172: 21 | AL172: 396666.6667 | AM172: 14166.66667 | AN172: 1123.888889 | AR172: 15290.55556 | AT172: 2022-12-31 | AU172: 9 | AV172: 21 | AW172: 407843.1576 | AX172: 14016.30235 | AY172: 1155.555613 | BC172: 15171.85796
AI173: 2023-01-31 | AJ173: 10 | AK173: 22 | AL173: 382500 | AM173: 14166.66667 | AN173: 1083.75 | AR173: 15250.41667 | AT173: 2023-01-31 | AU173: 10 | AV173: 22 | AW173: 393826.8552 | AX173: 14056.0152 | AY173: 1115.842757 | BC173: 15171.85796
AI174: 2023-02-28 | AJ174: 11 | AK174: 23 | AL174: 368333.3333 | AM174: 14166.66667 | AN174: 1043.611111 | AR174: 15210.27778 | AT174: 2023-02-28 | AU174: 11 | AV174: 23 | AW174: 379770.84 | AX174: 14095.84058 | AY174: 1076.01738 | BC174: 15171.85796
AI175: 2023-03-31 | AJ175: 12 | AK175: 24 | AL175: 354166.6667 | AM175: 14166.66667 | AN175: 1003.472222 | AR175: 15170.13889 | AT175: 2023-03-31 | AU175: 12 | AV175: 24 | AW175: 365674.9995 | AX175: 14135.7788 | AY175: 1036.079165 | BC175: 15171.85796
AI176: 2023-04-30 | AJ176: 1 | AK176: 25 | AL176: 340000 | AM176: 14166.66667 | AN176: 963.3333333 | AR176: 15130 | AT176: 2023-04-30 | AU176: 1 | AV176: 25 | AW176: 351539.2207 | AX176: 14175.83017 | AY176: 996.0277919 | BC176: 15171.85796
AI177: 2023-05-31 | AJ177: 2 | AK177: 26 | AL177: 325833.3333 | AM177: 14166.66667 | AN177: 923.1944444 | AR177: 15089.86111 | AT177: 2023-05-31 | AU177: 2 | AV177: 26 | AW177: 337363.3905 | AX177: 14215.99502 | AY177: 955.8629397 | BC177: 15171.85796
AI178: 2023-06-30 | AJ178: 3 | AK178: 27 | AL178: 311666.6667 | AM178: 14166.66667 | AN178: 883.0555556 | AR178: 15049.72222 | AT178: 2023-06-30 | AU178: 3 | AV178: 27 | AW178: 323147.3955 | AX178: 14256.27367 | AY178: 915.5842872 | BC178: 15171.85796
AI179: 2023-07-31 | AJ179: 4 | AK179: 28 | AL179: 297500 | AM179: 14166.66667 | AN179: 842.9166667 | AR179: 15009.58333 | AT179: 2023-07-31 | AU179: 4 | AV179: 28 | AW179: 308891.1218 | AX179: 14296.66645 | AY179: 875.1915118 | BC179: 15171.85796
AI180: 2023-08-31 | AJ180: 5 | AK180: 29 | AL180: 283333.3333 | AM180: 14166.66667 | AN180: 802.7777778 | AR180: 14969.44444 | AT180: 2023-08-31 | AU180: 5 | AV180: 29 | AW180: 294594.4553 | AX180: 14337.17367 | AY180: 834.6842902 | BC180: 15171.85796
AI181: 2023-09-30 | AJ181: 6 | AK181: 30 | AL181: 269166.6667 | AM181: 14166.66667 | AN181: 762.6388889 | AR181: 14929.30556 | AT181: 2023-09-30 | AU181: 6 | AV181: 30 | AW181: 280257.2817 | AX181: 14377.79566 | AY181: 794.0622981 | BC181: 15171.85796
AI182: 2023-10-31 | AJ182: 7 | AK182: 31 | AL182: 255000 | AM182: 14166.66667 | AN182: 722.5 | AR182: 14889.16667 | AT182: 2023-10-31 | AU182: 7 | AV182: 31 | AW182: 265879.486 | AX182: 14418.53275 | AY182: 753.3252104 | BC182: 15171.85796
AI183: 2023-11-30 | AJ183: 8 | AK183: 32 | AL183: 240833.3333 | AM183: 14166.66667 | AN183: 682.3611111 | AR183: 14849.02778 | AT183: 2023-11-30 | AU183: 8 | AV183: 32 | AW183: 251460.9533 | AX183: 14459.38526 | AY183: 712.4727009 | BC183: 15171.85796
AI184: 2023-12-31 | AJ184: 9 | AK184: 33 | AL184: 226666.6667 | AM184: =IF(OR(AK184<=$F$19,AK184=""),0,$F$15/(($F$16)-$F$19)) -> 14166.66667 | AN184: 642.2222222 | AR184: =IF(AK184>$F$16,"",SUM(AM184:AQ184)) -> 14808.88889 | AT184: 2023-12-31 | AU184: 9 | AV184: 33 | AW184: 237001.568 | AX184: 14500.35352 | AY184: =IF(AV184>$F$16,"",AW184*$F$22/12) -> 671.5044427 | BC184: =IF(AV184>$F$16,"",$AW$152*(1+$F$22/12)^$F$16*$F$22/12/((1+$F$22/12)^$F$16-1)) -> 15171.85796
AI185: =IF(C66>$F$16,"",EOMONTH(D65,1)) -> 2024-01-31 | AJ185: 10 | AK185: 34 | AL185: =IF(AK185>$F$16,"",AL184-AM184) -> 212500 | AM185: 14166.66667 | AN185: 602.0833333 | AR185: 14768.75 | AT185: =IF(C66>$F$16,"",EOMONTH(D65,1)) -> 2024-01-31 | AU185: 10 | AV185: 34 | AW185: =IF(AV185>$F$16,"",AW184-AX184) -> 222501.2145 | AX185: 14541.43785 | AY185: 630.4201077 | BC185: 15171.85796
AI186: 2024-02-29 | AJ186: 11 | AK186: 35 | AL186: 198333.3333 | AM186: 14166.66667 | AN186: 561.9444444 | AR186: 14728.61111 | AT186: 2024-02-29 | AU186: 11 | AV186: 35 | AW186: 207959.7766 | AX186: 14582.63859 | AY186: 589.2193671 | BC186: 15171.85796
AI187: 2024-03-31 | AJ187: 12 | AK187: 36 | AL187: 184166.6667 | AM187: 14166.66667 | AN187: 521.8055556 | AR187: 14688.47222 | AT187: 2024-03-31 | AU187: 12 | AV187: 36 | AW187: 193377.138 | AX187: 14623.95607 | AY187: 547.9018911 | BC187: 15171.85796
AI188: 2024-04-30 | AJ188: 1 | AK188: 37 | AL188: 170000 | AM188: 14166.66667 | AN188: 481.6666667 | AR188: 14648.33333 | AT188: 2024-04-30 | AU188: 1 | AV188: 37 | AW188: 178753.182 | AX188: 14665.39061 | AY188: 506.4673489 | BC188: 15171.85796
AI189: 2024-05-31 | AJ189: 2 | AK189: 38 | AL189: 155833.3333 | AM189: 14166.66667 | AN189: 441.5277778 | AR189: 14608.19444 | AT189: 2024-05-31 | AU189: 2 | AV189: 38 | AW189: 164087.7914 | AX189: 14706.94255 | AY189: 464.9154088 | BC189: 15171.85796
AI190: 2024-06-30 | AJ190: 3 | AK190: 39 | AL190: 141666.6667 | AM190: 14166.66667 | AN190: 401.3888889 | AR190: 14568.05556 | AT190: 2024-06-30 | AU190: 3 | AV190: 39 | AW190: 149380.8488 | AX190: 14748.61222 | AY190: 423.2457383 | BC190: 15171.85796
AI191: 2024-07-31 | AJ191: 4 | AK191: 40 | AL191: 127500 | AM191: 14166.66667 | AN191: 361.25 | AR191: 14527.91667 | AT191: 2024-07-31 | AU191: 4 | AV191: 40 | AW191: 134632.2366 | AX191: 14790.39996 | AY191: 381.4580036 | BC191: 15171.85796
AI192: 2024-08-31 | AJ192: 5 | AK192: 41 | AL192: 113333.3333 | AM192: 14166.66667 | AN192: 321.1111111 | AR192: 14487.77778 | AT192: 2024-08-31 | AU192: 5 | AV192: 41 | AW192: 119841.8366 | AX192: 14832.30609 | AY192: 339.5518704 | BC192: 15171.85796
AI193: 2024-09-30 | AJ193: 6 | AK193: 42 | AL193: 99166.66667 | AM193: 14166.66667 | AN193: 280.9722222 | AR193: 14447.63889 | AT193: 2024-09-30 | AU193: 6 | AV193: 42 | AW193: 105009.5305 | AX193: 14874.33096 | AY193: 297.5270032 | BC193: 15171.85796
AI194: 2024-10-31 | AJ194: 7 | AK194: 43 | AL194: 85000 | AM194: 14166.66667 | AN194: 240.8333333 | AR194: 14407.5 | AT194: 2024-10-31 | AU194: 7 | AV194: 43 | AW194: 90135.19957 | AX194: 14916.4749 | AY194: 255.3830655 | BC194: 15171.85796
AI195: 2024-11-30 | AJ195: 8 | AK195: 44 | AL195: 70833.33333 | AM195: 14166.66667 | AN195: 200.6944444 | AR195: 14367.36111 | AT195: 2024-11-30 | AU195: 8 | AV195: 44 | AW195: 75218.72468 | AX195: 14958.73824 | AY195: 213.1197199 | BC195: 15171.85796
AI196: 2024-12-31 | AJ196: 9 | AK196: 45 | AL196: 56666.66667 | AM196: 14166.66667 | AN196: =IF(AK196>$F$16,"",AL196*IF($F$20=$AK$133,$F$22,$F$23)/12) -> 160.5555556 | AR196: 14327.22222 | AT196: 2024-12-31 | AU196: 9 | AV196: 45 | AW196: 60259.98644 | AX196: 15001.12133 | AY196: 170.7366282 | BC196: 15171.85796
AI197: 2025-01-31 | AJ197: 10 | AK197: 46 | AL197: 42500 | AM197: 14166.66667 | AN197: 120.4166667 | AR197: 14287.08333 | AT197: 2025-01-31 | AU197: 10 | AV197: 46 | AW197: 45258.8651 | AX197: 15043.62451 | AY197: 128.2334511 | BC197: 15171.85796
AI198: 2025-02-28 | AJ198: 11 | AK198: 47 | AL198: 28333.33333 | AM198: 14166.66667 | AN198: 80.27777778 | AR198: 14246.94444 | AT198: 2025-02-28 | AU198: 11 | AV198: 47 | AW198: 30215.2406 | AX198: 15086.24811 | AY198: 85.60984835 | BC198: 15171.85796
AI199: 2025-03-31 | AJ199: 12 | AK199: 48 | AL199: 14166.66667 | AM199: 14166.66667 | AN199: 40.13888889 | AR199: 14206.80556 | AT199: 2025-03-31 | AU199: 12 | AV199: 48 | AW199: 15128.99248 | AX199: 15128.99248 | AY199: 42.8654787 | BC199: 15171.85796
AJ200: 1 | AM200: 0 | AU200: 1
AJ201: 2 | AM201: 0 | AU201: 2
AJ202: 3 | AM202: 0 | AU202: 3
AJ203: 4 | AM203: 0 | AU203: 4
AJ204: 5 | AM204: 0 | AU204: 5
AJ205: 6 | AM205: 0 | AU205: 6
AJ206: 7 | AM206: 0 | AU206: 7
AJ207: 8 | AM207: 0 | AU207: 8
AJ208: 9 | AM208: 0 | AU208: 9
AJ209: 10 | AM209: 0 | AU209: 10
AJ210: 11 | AK210: =IF(AK209<$F$16,AK209+1,"") ->  | AM210: 0 | AU210: 11 | AV210: =IF(AV209<$F$16,AV209+1,"") -> 
AJ211: 12 | AK211: =IF(AK210<$F$16,AK210+1,"") ->  | AM211: 0 | AU211: 12 | AV211: =IF(AV210<$F$16,AV210+1,"") -> 
W212: =IF(X212="","",MONTH(X212)) -> 2 | X212: =EOMONTH(X211,1) -> 1900-02-28 | Y212: 1 | Z212: =Z211+1 -> 1 | AA212: =IF(Z212>$F$16,"",AA211-AB211) -> 0 | AB212: =IF(OR(Z212>$F$16,HLOOKUP(W212,$X$139:$AI$140,2,0)="ні"),0,$F$15/((12-$F$19)*($F$16/12))) ->  | AC212: =IF(Z212>$F$16,"",AA212*IF($F$20=$AK$133,$F$22,$F$23)/12) -> 0 | AE212: =IF(Z212>$F$16,"",$F$15*#REF!) ->  | AG212: =IF(Z212>$F$16,"",SUM(AB212:AF212)) ->  | AH212: =MONTH(AI212) ->  | AJ212: 1 | AK212: =IF(AK211<$F$16,AK211+1,"") ->  | AM212: 0 | AP212: =IF(AK212>$F$16,"",$F$15*#REF!) -> 
W213: =IF(X213="","",MONTH(X213)) -> 3 | X213: 1900-03-31 | Y213: 2 | Z213: 2 | AE213: =IF(Z213>$F$16,"",$F$15*#REF!) ->  | AH213: 2 | AI213: 1900-02-28 | AJ213: 2 | AM213: 0 | AP213: =IF(AK213>$F$16,"",$F$15*#REF!) -> 
W214: =IF(X214="","",MONTH(X214)) -> 4 | X214: 1900-04-30 | Y214: 3 | Z214: 3 | AE214: =IF(Z214>$F$16,"",$F$15*#REF!) ->  | AH214: 2 | AI214: 1900-02-28 | AJ214: 3 | AM214: 0 | AP214: =IF(AK214>$F$16,"",$F$15*#REF!) -> 
W215: 5 | X215: 1900-05-31 | Y215: 4 | Z215: 4 | AE215: =IF(Z215>$F$16,"",$F$15*#REF!) ->  | AH215: 2 | AI215: 1900-02-28 | AJ215: 4 | AM215: 0 | AP215: =IF(AK215>$F$16,"",$F$15*#REF!) -> 
W216: 6 | X216: 1900-06-30 | Y216: 5 | Z216: 5 | AE216: =IF(Z216>$F$16,"",$F$15*#REF!) ->  | AG216: =IF(Z216>$F$16,"",SUM(AB216:AF216)) ->  | AH216: 2 | AI216: 1900-02-28 | AJ216: 5 | AM216: =IF(OR(AK216<=$F$19,AK216=""),0,$F$15/(($F$16)-$F$19)) -> 0 | AP216: =IF(AK216>$F$16,"",$F$15*#REF!) ->  | AR216: =IF(AK216>$F$16,"",SUM(AM216:AQ216)) -> 
W217: 7 | X217: 1900-07-31 | Y217: 6 | Z217: 6 | AA217: =IF(Z217>$F$16,"",AA216-AB216) ->  | AE217: =IF(Z217>$F$16,"",$F$15*#REF!) ->  | AH217: =MONTH(AI217) -> 2 | AI217: =IF(C98>$F$16,"",EOMONTH(D97,1)) -> 1900-02-28 | AJ217: 6 | AL217: =IF(AK217>$F$16,"",AL216-AM216) ->  | AM217: 0 | AP217: =IF(AK217>$F$16,"",$F$15*#REF!) -> 
W218: 8 | X218: =EOMONTH(X217,1) -> 1900-08-31 | Y218: 7 | Z218: 7 | AE218: =IF(Z218>$F$16,"",$F$15*#REF!) ->  | AH218: 2 | AI218: 1900-02-28 | AJ218: 7 | AM218: 0 | AP218: =IF(AK218>$F$16,"",$F$15*#REF!) -> 
W219: 9 | X219: 1900-09-30 | Y219: 8 | Z219: 8 | AE219: =IF(Z219>$F$16,"",$F$15*#REF!) ->  | AH219: 2 | AI219: 1900-02-28 | AJ219: 8 | AM219: 0 | AP219: =IF(AK219>$F$16,"",$F$15*#REF!) -> 
W220: 10 | X220: 1900-10-31 | Y220: 9 | Z220: 9 | AE220: =IF(Z220>$F$16,"",$F$15*#REF!) ->  | AH220: 2 | AI220: 1900-02-28 | AJ220: 9 | AM220: 0 | AP220: =IF(AK220>$F$16,"",$F$15*#REF!) -> 
W221: 11 | X221: 1900-11-30 | Y221: 10 | Z221: 10 | AE221: =IF(Z221>$F$16,"",$F$15*#REF!) ->  | AH221: 2 | AI221: 1900-02-28 | AJ221: 10 | AM221: 0 | AP221: =IF(AK221>$F$16,"",$F$15*#REF!) -> 
W222: 12 | X222: 1900-12-31 | Y222: 11 | Z222: 11 | AE222: =IF(Z222>$F$16,"",$F$15*#REF!) ->  | AH222: 2 | AI222: 1900-02-28 | AJ222: 11 | AM222: 0 | AP222: =IF(AK222>$F$16,"",$F$15*#REF!) -> 
W223: 1 | X223: 1901-01-31 | Y223: 12 | Z223: 12 | AE223: =IF(Z223>$F$16,"",$F$15*#REF!) ->  | AH223: 2 | AI223: 1900-02-28 | AJ223: 12 | AM223: 0 | AP223: =IF(AK223>$F$16,"",$F$15*#REF!) -> 
W224: 2 | X224: 1901-02-28 | Y224: 1 | Z224: 13 | AE224: =IF(Z224>$F$16,"",$F$15*#REF!) ->  | AH224: 2 | AI224: 1900-02-28 | AJ224: 1 | AM224: 0 | AP224: =IF(AK224>$F$16,"",$F$15*#REF!) -> 
W225: 3 | X225: 1901-03-31 | Y225: 2 | Z225: 14 | AE225: =IF(Z225>$F$16,"",$F$15*#REF!) ->  | AH225: 2 | AI225: 1900-02-28 | AJ225: 2 | AM225: 0 | AP225: =IF(AK225>$F$16,"",$F$15*#REF!) -> 
W226: 4 | X226: 1901-04-30 | Y226: 3 | Z226: 15 | AE226: =IF(Z226>$F$16,"",$F$15*#REF!) ->  | AH226: 2 | AI226: 1900-02-28 | AJ226: 3 | AM226: 0 | AP226: =IF(AK226>$F$16,"",$F$15*#REF!) -> 
W227: 5 | X227: 1901-05-31 | Y227: 4 | Z227: 16 | AE227: =IF(Z227>$F$16,"",$F$15*#REF!) ->  | AH227: 2 | AI227: 1900-02-28 | AJ227: 4 | AM227: 0 | AP227: =IF(AK227>$F$16,"",$F$15*#REF!) -> 
W228: 6 | X228: 1901-06-30 | Y228: 5 | Z228: 17 | AE228: =IF(Z228>$F$16,"",$F$15*#REF!) ->  | AH228: 2 | AI228: 1900-02-28 | AJ228: 5 | AM228: 0 | AN228: =IF(AK228>$F$16,"",AL228*IF($F$20=$AK$133,$F$22,$F$23)/12) ->  | AP228: =IF(AK228>$F$16,"",$F$15*#REF!) -> 
W229: 7 | X229: 1901-07-31 | Y229: 6 | Z229: 18 | AE229: =IF(Z229>$F$16,"",$F$15*#REF!) ->  | AH229: 2 | AI229: 1900-02-28 | AJ229: 6 | AM229: 0 | AP229: =IF(AK229>$F$16,"",$F$15*#REF!) -> 
W230: 8 | X230: 1901-08-31 | Y230: 7 | Z230: 19 | AE230: =IF(Z230>$F$16,"",$F$15*#REF!) ->  | AH230: 2 | AI230: 1900-02-28 | AJ230: 7 | AM230: 0 | AP230: =IF(AK230>$F$16,"",$F$15*#REF!) -> 
W231: 9 | X231: 1901-09-30 | Y231: 8 | Z231: 20 | AE231: =IF(Z231>$F$16,"",$F$15*#REF!) ->  | AH231: 2 | AI231: 1900-02-28 | AJ231: 8 | AM231: 0 | AP231: =IF(AK231>$F$16,"",$F$15*#REF!) -> 
W232: 10 | X232: 1901-10-31 | Y232: 9 | Z232: 21 | AE232: =IF(Z232>$F$16,"",$F$15*#REF!) ->  | AH232: 2 | AI232: 1900-02-28 | AJ232: 9 | AM232: 0 | AP232: =IF(AK232>$F$16,"",$F$15*#REF!) -> 
W233: 11 | X233: 1901-11-30 | Y233: 10 | Z233: 22 | AE233: =IF(Z233>$F$16,"",$F$15*#REF!) ->  | AH233: 2 | AI233: 1900-02-28 | AJ233: 10 | AM233: 0 | AP233: =IF(AK233>$F$16,"",$F$15*#REF!) -> 
W234: 12 | X234: 1901-12-31 | Y234: 11 | Z234: 23 | AE234: =IF(Z234>$F$16,"",$F$15*#REF!) ->  | AH234: 2 | AI234: 1900-02-28 | AJ234: 11 | AM234: 0 | AP234: =IF(AK234>$F$16,"",$F$15*#REF!) -> 
W235: 1 | X235: 1902-01-31 | Y235: 12 | Z235: 24 | AE235: =IF(Z235>$F$16,"",$F$15*#REF!) ->  | AH235: 2 | AI235: 1900-02-28 | AJ235: 12 | AM235: 0 | AP235: =IF(AK235>$F$16,"",$F$15*#REF!) -> 
W236: 2 | X236: 1902-02-28 | Y236: 1 | Z236: 25 | AE236: =IF(Z236>$F$16,"",$F$15*#REF!) ->  | AH236: 2 | AI236: 1900-02-28 | AJ236: 1 | AM236: 0 | AP236: =IF(AK236>$F$16,"",$F$15*#REF!) -> 
W237: 3 | X237: 1902-03-31 | Y237: 2 | Z237: 26 | AE237: =IF(Z237>$F$16,"",$F$15*#REF!) ->  | AH237: 2 | AI237: 1900-02-28 | AJ237: 2 | AM237: 0 | AP237: =IF(AK237>$F$16,"",$F$15*#REF!) -> 
W238: 4 | X238: 1902-04-30 | Y238: 3 | Z238: 27 | AE238: =IF(Z238>$F$16,"",$F$15*#REF!) ->  | AH238: 2 | AI238: 1900-02-28 | AJ238: 3 | AM238: 0 | AP238: =IF(AK238>$F$16,"",$F$15*#REF!) -> 
W239: 5 | X239: 1902-05-31 | Y239: 4 | Z239: 28 | AE239: =IF(Z239>$F$16,"",$F$15*#REF!) ->  | AH239: 2 | AI239: 1900-02-28 | AJ239: 4 | AM239: 0 | AP239: =IF(AK239>$F$16,"",$F$15*#REF!) -> 
W240: 6 | X240: 1902-06-30 | Y240: 5 | Z240: 29 | AE240: =IF(Z240>$F$16,"",$F$15*#REF!) ->  | AH240: 2 | AI240: 1900-02-28 | AJ240: 5 | AM240: 0 | AP240: =IF(AK240>$F$16,"",$F$15*#REF!) -> 
W241: 7 | X241: 1902-07-31 | Y241: 6 | Z241: 30 | AE241: =IF(Z241>$F$16,"",$F$15*#REF!) ->  | AH241: 2 | AI241: 1900-02-28 | AJ241: 6 | AM241: 0 | AP241: =IF(AK241>$F$16,"",$F$15*#REF!) -> 
W242: 8 | X242: 1902-08-31 | Y242: 7 | Z242: 31 | AE242: =IF(Z242>$F$16,"",$F$15*#REF!) ->  | AH242: 2 | AI242: 1900-02-28 | AJ242: 7 | AM242: 0 | AP242: =IF(AK242>$F$16,"",$F$15*#REF!) -> 
W243: 9 | X243: 1902-09-30 | Y243: 8 | Z243: 32 | AE243: =IF(Z243>$F$16,"",$F$15*#REF!) ->  | AH243: 2 | AI243: 1900-02-28 | AJ243: 8 | AM243: 0 | AP243: =IF(AK243>$F$16,"",$F$15*#REF!) -> 
W244: 10 | X244: 1902-10-31 | Y244: 9 | Z244: 33 | AC244: =IF(Z244>$F$16,"",AA244*IF($F$20=$AK$133,$F$22,$F$23)/12) ->  | AE244: =IF(Z244>$F$16,"",$F$15*#REF!) ->  | AH244: 2 | AI244: 1900-02-28 | AJ244: 9 | AM244: 0 | AP244: =IF(AK244>$F$16,"",$F$15*#REF!) -> 
W245: 11 | X245: 1902-11-30 | Y245: 10 | Z245: 34 | AE245: =IF(Z245>$F$16,"",$F$15*#REF!) ->  | AH245: 2 | AI245: 1900-02-28 | AJ245: 10 | AM245: 0 | AP245: =IF(AK245>$F$16,"",$F$15*#REF!) -> 
W246: 12 | X246: 1902-12-31 | Y246: 11 | Z246: 35 | AE246: =IF(Z246>$F$16,"",$F$15*#REF!) ->  | AH246: 2 | AI246: 1900-02-28 | AJ246: 11 | AM246: 0 | AP246: =IF(AK246>$F$16,"",$F$15*#REF!) -> 
W247: 1 | X247: 1903-01-31 | Y247: 12 | Z247: 36 | AE247: =IF(Z247>$F$16,"",$F$15*#REF!) ->  | AH247: 2 | AI247: 1900-02-28 | AJ247: 12 | AM247: 0 | AP247: =IF(AK247>$F$16,"",$F$15*#REF!) -> 
W248: 2 | X248: 1903-02-28 | Y248: 1 | Z248: 37 | AE248: =IF(Z248>$F$16,"",$F$15*#REF!) ->  | AG248: =IF(Z248>$F$16,"",SUM(AB248:AF248)) ->  | AH248: 2 | AI248: 1900-02-28 | AJ248: 1 | AM248: =IF(OR(AK248<=$F$19,AK248=""),0,$F$15/(($F$16)-$F$19)) -> 0 | AP248: =IF(AK248>$F$16,"",$F$15*#REF!) ->  | AR248: =IF(AK248>$F$16,"",SUM(AM248:AQ248)) -> 
W249: 3 | X249: 1903-03-31 | Y249: 2 | Z249: 38 | AA249: =IF(Z249>$F$16,"",AA248-AB248) ->  | AE249: =IF(Z249>$F$16,"",$F$15*#REF!) ->  | AH249: 2 | AI249: =IF(C130>$F$16,"",EOMONTH(D129,1)) -> 1900-02-28 | AJ249: 2 | AL249: =IF(AK249>$F$16,"",AL248-AM248) ->  | AM249: 0 | AP249: =IF(AK249>$F$16,"",$F$15*#REF!) -> 
W250: 4 | X250: 1903-04-30 | Y250: 3 | Z250: 39 | AE250: =IF(Z250>$F$16,"",$F$15*#REF!) ->  | AH250: 2 | AI250: 1900-02-28 | AJ250: 3 | AM250: 0 | AP250: =IF(AK250>$F$16,"",$F$15*#REF!) -> 
... 95 more rows

Sheet Аркуш3 (hidden)
A2: TOB «ВіДі Автострада» | B2: Toyota
A3: TOB «ВіДі Еліт» | B3: Lexus
A4: TOB «ВіДі-Пауер» LR | B4: Land Rover
A5: TOB «ВіДі-Пауер» J | B5: Jaguar
A6: TOB «ВіДі-Санрайз» | B6: Nissan
A7: TOB «ВіДі-Край Моторз» | B7: Ford
A8: TOB «ВіДі-Скай» | B8: Mazda
A9: TOB «ВіДі Елеганс» | B9: Citroën
A10: TOB «ВіДі Авеню» | B10: Peugeot
A11: TOB «ВіДі-Стар» | B11: Subaru
A12: TOB «ВіДі Пальміра» | B12: Toyota
A13: TOB «ВіДі Гранд» | B13: Suzuki
A14: TOB «ВіДі Армада» | B14: Nissan
A15: TOB «ВіДі Інсайт» | B15: Honda
A16: TOB «ВіДі-Ліберті» | B16: Infiniti
A17: TOB «ВіДі Нордвей» | B17: Volvo
A21: TOB «ВіДі Автострада»
A22: TOB «ВіДі Еліт»
A23: TOB «ВіДі-Пауер»
A25: TOB «ВіДі-Санрайз»
A26: TOB «ВіДі-Край Моторз»
A27: TOB «ВіДі-Скай»
A28: TOB «ВіДі Елеганс»
A29: TOB «ВіДі Авеню»
A30: TOB «ВіДі-Стар»
A31: TOB «ВіДі Пальміра»
A32: TOB «ВіДі Гранд»
A33: TOB «ВіДі Армада»
A34: TOB «ВіДі Інсайт»
A35: TOB «ВіДі-Ліберті»
A36: TOB «ВіДі Нордвей»
A48: 2020-08-01
A49: 2020-09-01
A50: 2020-10-01
A51: 2020-11-01
A52: 2020-12-01
A53: 2021-01-01
A54: 2021-02-01
A55: 2021-03-01
A56: 2021-04-01
A57: 2021-05-01
A58: 2021-06-01
A59: 2021-07-01
A60: 2021-08-01
A61: 2021-09-01
A62: 2021-10-01
A63: 2021-11-01
A64: 2021-12-01
A65: 2022-01-01
A66: 2022-02-01
A67: 2022-03-01
A68: 2022-04-01
A69: 2022-05-01
A70: 2022-06-01
A71: 2022-07-01
A72: 2022-08-01
A73: 2022-09-01
A74: 2022-10-01
A75: 2022-11-01
A76: 2022-12-01
A77: 2023-01-01
A78: 2023-02-01
A79: 2023-03-01
A80: 2023-04-01
A81: 2023-05-01
A82: 2023-06-01
A83: 2023-07-01
A84: 2023-08-01
A85: 2023-09-01
A86: 2023-10-01
A87: 2023-11-01
A88: 2023-12-01
A89: 2024-01-01
A90: 2024-02-01
A91: 2024-03-01
A92: 2024-04-01
A93: 2024-05-01
A94: 2024-06-01
A95: 2024-07-01
A96: 2024-08-01
A97: 2024-09-01
A98: 2024-10-01
A99: 2024-11-01
A100: 2024-12-01
A101: 2025-01-01
A102: 2025-02-01
A103: 2025-03-01
A104: 2025-04-01
A105: 2025-05-01
A106: 2025-06-01
A107: 2025-07-01
A108: 2025-08-01
A109: 2025-09-01
A110: 2025-10-01
A111: 2025-11-01
A112: 2025-12-01

Sheet тарифи (hidden)
A1: Легкові авто для Бізнесу Fiat 1,99% за видачу
A2: Легкові авто для Бізнесу Fiat 0,0% за видачу
A30: Легкові авто для Бізнесу Vidi 2,99% за видачу | F30: =IF(Розрахунок!$F$14=тарифи!B31,VLOOKUP(Розрахунок!$F$16,тарифи!$A$32:$B$36,2,0),IF(Розрахунок!$F$14=тарифи!C31,VLOOKUP(Розрахунок!$F$16,тарифи!$A$32:$C$36,3,0),IF(Розрахунок!$F$14=тарифи!D31,VLOOKUP(Розрахунок!$F$16,тарифи!$A$32:$D$36,4,0),IF(Розрахунок!$F$14=тарифи!E31,VLOOKUP(Розрахунок!$F$16,тарифи!$A$32:$E$36,5,0))))) -> 0.037 | G30: 0.0299
B31: 0.3 | C31: 0.4 | D31: 0.5 | E31: 0.6
A32: 12 | B32: 0.0001 | C32: 0.0001 | D32: 0.0001 | E32: 0.0001
A33: 24 | B33: 0.042 | C33: 0.032 | D33: 0.019 | E33: 0.0001
A34: 36 | B34: 0.06 | C34: 0.052 | D34: 0.04 | E34: 0.023
A35: 48 | B35: 0.07 | C35: 0.063 | D35: 0.052 | E35: 0.037
A36: 60 | B36: 0.077 | C36: 0.07 | D36: 0.061 | E36: 0.047
A38: Легкові авто для Бізнесу Vidi 0,0% за видачу | F38: =IF(Розрахунок!$F$14=тарифи!B39,VLOOKUP(Розрахунок!$F$16,тарифи!$A$40:$B$44,2,0),IF(Розрахунок!$F$14=тарифи!C39,VLOOKUP(Розрахунок!$F$16,тарифи!$A$40:$C$44,3,0),IF(Розрахунок!$F$14=тарифи!D39,VLOOKUP(Розрахунок!$F$16,тарифи!$A$40:$D$44,4,0),IF(Розрахунок!$F$14=тарифи!E39,VLOOKUP(Розрахунок!$F$16,тарифи!$A$40:$E$44,5,0))))) -> 0.062 | G38: 0
B39: 0.3 | C39: 0.4 | D39: 0.5 | E39: 0.6
A40: 12 | B40: 0.067 | C40: 0.056 | D40: 0.041 | E40: 0.019
A41: 24 | B41: 0.081 | C41: 0.073 | D41: 0.061 | E41: 0.043
A42: 36 | B42: 0.087 | C42: 0.08 | D42: 0.07 | E42: 0.054
A43: 48 | B43: 0.092 | C43: 0.085 | D43: 0.076 | E43: 0.062
A44: 60 | B44: 0.095 | C44: 0.089 | D44: 0.081 | E44: 0.068
A46: Легкові вживані авто для Бізнесу | F46: =IF(Розрахунок!$F$14=тарифи!B47,VLOOKUP(Розрахунок!$F$16,тарифи!$A$48:$B$52,2,0),IF(Розрахунок!$F$14=тарифи!C47,VLOOKUP(Розрахунок!$F$16,тарифи!$A$48:$C$52,3,0),IF(Розрахунок!$F$14=тарифи!D47,VLOOKUP(Розрахунок!$F$16,тарифи!$A$48:$D$52,4,0),IF(Розрахунок!$F$14=тарифи!E47,VLOOKUP(Розрахунок!$F$16,тарифи!$A$48:$E$52,5,0))))) -> 0.062 | G46: 0.0199
B47: 0.3 | C47: 0.4 | D47: 0.5 | E47: 0.6
A48: 12 | B48: 0.04 | C48: 0.029 | D48: 0.014 | E48: 0.0001
A49: 24 | B49: 0.072 | C49: 0.064 | D49: 0.051 | E49: 0.034
A50: 36 | B50: 0.084 | C50: 0.077 | D50: 0.067 | E50: 0.051
A51: 48 | B51: 0.092 | C51: 0.085 | D51: 0.076 | E51: 0.062
A52: 60 | B52: 0.097 | C52: 0.091 | D52: 0.083 | E52: 0.07
A54: Легкові авто для Бізнесу BMW 2,99% за видачу | F54: =IF(Розрахунок!$F$14=тарифи!B55,VLOOKUP(Розрахунок!$F$16,тарифи!$A$56:$B$60,2,0),IF(Розрахунок!$F$14=тарифи!C55,VLOOKUP(Розрахунок!$F$16,тарифи!$A$56:$C$60,3,0),IF(Розрахунок!$F$14=тарифи!D55,VLOOKUP(Розрахунок!$F$16,тарифи!$A$56:$D$60,4,0),IF(Розрахунок!$F$14=тарифи!E55,VLOOKUP(Розрахунок!$F$16,тарифи!$A$56:$E$60,5,0))))) -> 0.062 | G54: 0.0299
B55: 0.3 | C55: 0.4 | D55: 0.5 | E55: 0.6
A56: 12 | B56: 0.039 | C56: 0.032 | D56: 0.023 | E56: 0.01
A57: 24 | B57: 0.067 | C57: 0.061 | D57: 0.053 | E57: 0.04
A58: 36 | B58: 0.079 | C58: 0.073 | D58: 0.065 | E58: 0.053
A59: 48 | B59: 0.086 | C59: 0.081 | D59: 0.073 | E59: 0.062
A60: 60 | B60: 0.091 | C60: 0.086 | D60: 0.079 | E60: 0.069
A62: Легкові авто для Бізнесу BMW 0,0% за видачу | F62: =IF(Розрахунок!$F$14=тарифи!B63,VLOOKUP(Розрахунок!$F$16,тарифи!$A$64:$B$68,2,0),IF(Розрахунок!$F$14=тарифи!C63,VLOOKUP(Розрахунок!$F$16,тарифи!$A$64:$C$68,3,0),IF(Розрахунок!$F$14=тарифи!D63,VLOOKUP(Розрахунок!$F$16,тарифи!$A$64:$D$68,4,0),IF(Розрахунок!$F$14=тарифи!E63,VLOOKUP(Розрахунок!$F$16,тарифи!$A$64:$E$68,5,0))))) -> 0.075 | G62: 0
B63: 0.3 | C63: 0.4 | D63: 0.5 | E63: 0.6
A64: 12 | B64: 0.093 | C64: 0.087 | D64: 0.077 | E64: 0.064
A65: 24 | B65: 0.095 | C65: 0.089 | D65: 0.08 | E65: 0.068
A66: 36 | B66: 0.097 | C66: 0.092 | D66: 0.084 | E66: 0.072
A67: 48 | B67: 0.1 | C67: 0.094 | D67: 0.087 | E67: 0.075
A68: 60 | B68: 0.102 | C68: 0.097 | D68: 0.09 | E68: 0.08
A70: Легкові авто для Бізнесу Toyota 1,99% за видачу | F70: =IF(Розрахунок!$F$14=тарифи!B71,VLOOKUP(Розрахунок!$F$16,тарифи!$A$72:$B$76,2,0),IF(Розрахунок!$F$14=тарифи!C71,VLOOKUP(Розрахунок!$F$16,тарифи!$A$72:$C$76,3,0),IF(Розрахунок!$F$14=тарифи!D71,VLOOKUP(Розрахунок!$F$16,тарифи!$A$72:$D$76,4,0),IF(Розрахунок!$F$14=тарифи!E71,VLOOKUP(Розрахунок!$F$16,тарифи!$A$72:$E$76,5,0))))) -> 0.048 | G70: 0.0199
B71: 0.3 | C71: 0.4 | D71: 0.5 | E71: 0.6
A72: 12 | B72: 0.027 | C72: 0.016 | D72: 0.0001 | E72: 0.0001
A73: 24 | B73: 0.058 | C73: 0.05 | D73: 0.038 | E73: 0.02
A74: 36 | B74: 0.071 | C74: 0.063 | D74: 0.053 | E74: 0.038
A75: 48 | B75: 0.078 | C75: 0.072 | D75: 0.062 | E75: 0.048
A76: 60 | B76: 0.084 | C76: 0.078 | D76: 0.069 | E76: 0.056
A78: Легкові авто для Бізнесу Toyota 0,0% за видачу | F78: =IF(Розрахунок!$F$14=тарифи!B79,VLOOKUP(Розрахунок!$F$16,тарифи!$A$80:$B$84,2,0),IF(Розрахунок!$F$14=тарифи!C79,VLOOKUP(Розрахунок!$F$16,тарифи!$A$80:$C$84,3,0),IF(Розрахунок!$F$14=тарифи!D79,VLOOKUP(Розрахунок!$F$16,тарифи!$A$80:$D$84,4,0),IF(Розрахунок!$F$14=тарифи!E79,VLOOKUP(Розрахунок!$F$16,тарифи!$A$80:$E$84,5,0))))) -> 0.057 | G78: 0
B79: 0.3 | C79: 0.4 | D79: 0.5 | E79: 0.6
A80: 12 | B80: 0.063 | C80: 0.052 | D80: 0.037 | E80: 0.014
A81: 24 | B81: 0.077 | C81: 0.068 | D81: 0.056 | E81: 0.039
A82: 36 | B82: 0.083 | C82: 0.076 | D82: 0.065 | E82: 0.05
A83: 48 | B83: 0.087 | C83: 0.081 | D83: 0.072 | E83: 0.057
A84: 60 | B84: 0.091 | C84: 0.085 | D84: 0.076 | E84: 0.063
A86: Легкові авто для Бізнесу Mitsubishi 1,99% за видачу | F86: =IF(Розрахунок!$F$14=тарифи!B87,VLOOKUP(Розрахунок!$F$16,тарифи!$A$88:$B$92,2,0),IF(Розрахунок!$F$14=тарифи!C87,VLOOKUP(Розрахунок!$F$16,тарифи!$A$88:$C$92,3,0),IF(Розрахунок!$F$14=тарифи!D87,VLOOKUP(Розрахунок!$F$16,тарифи!$A$88:$D$92,4,0),IF(Розрахунок!$F$14=тарифи!E87,VLOOKUP(Розрахунок!$F$16,тарифи!$A$88:$E$92,5,0))))) -> 0.016 | G86: 0.0199
B87: 0.3 | C87: 0.4 | D87: 0.5 | E87: 0.6
A88: 12 | B88: 0.0001 | C88: 0.0001 | D88: 0.0001 | E88: 0.0001
A89: 24 | B89: 0.021 | C89: 0.007 | D89: 0.0001 | E89: 0.0001
A90: 36 | B90: 0.044 | C90: 0.033 | D90: 0.018 | E90: 0.0001
A91: 48 | B91: 0.058 | C91: 0.048 | D91: 0.035 | E91: 0.016
A92: 60 | B92: 0.066 | C92: 0.058 | D92: 0.047 | E92: 0.029
A94: Легкові авто для Бізнесу Mitsubishi 0,0% за видачу | F94: =IF(Розрахунок!$F$14=тарифи!B95,VLOOKUP(Розрахунок!$F$16,тарифи!$A$96:$B$100,2,0),IF(Розрахунок!$F$14=тарифи!C95,VLOOKUP(Розрахунок!$F$16,тарифи!$A$96:$C$100,3,0),IF(Розрахунок!$F$14=тарифи!D95,VLOOKUP(Розрахунок!$F$16,тарифи!$A$96:$D$100,4,0),IF(Розрахунок!$F$14=тарифи!E95,VLOOKUP(Розрахунок!$F$16,тарифи!$A$96:$E$100,5,0))))) -> 0.025 | G94: 0
B95: 0.3 | C95: 0.4 | D95: 0.5 | E95: 0.6
A96: 12 | B96: 0.0001 | C96: 0.0001 | D96: 0.0001 | E96: 0.0001
A97: 24 | B97: 0.039 | C97: 0.025 | D97: 0.006 | E97: 0.0001
A98: 36 | B98: 0.057 | C98: 0.046 | D98: 0.03 | E98: 0.007
A99: 48 | B99: 0.067 | C99: 0.057 | D99: 0.044 | E99: 0.025
A100: 60 | B100: 0.073 | C100: 0.065 | D100: 0.054 | E100: 0.037
A102: Легкові авто для Бізнесу PSA 1,99% за видачу | F102: =IF(Розрахунок!$F$14=тарифи!B103,VLOOKUP(Розрахунок!$F$16,тарифи!$A$104:$B$108,2,0),IF(Розрахунок!$F$14=тарифи!C103,VLOOKUP(Розрахунок!$F$16,тарифи!$A$104:$C$108,3,0),IF(Розрахунок!$F$14=тарифи!D103,VLOOKUP(Розрахунок!$F$16,тарифи!$A$104:$D$108,4,0),IF(Розрахунок!$F$14=тарифи!E103,VLOOKUP(Розрахунок!$F$16,тарифи!$A$104:$E$108,5,0))))) -> 0.048 | G102: 0.0199
B103: 0.3 | C103: 0.4 | D103: 0.5 | E103: 0.6
A104: 12 | B104: 0.027 | C104: 0.016 | D104: 0.0001 | E104: 0.0001
A105: 24 | B105: 0.058 | C105: 0.05 | D105: 0.038 | E105: 0.02
A106: 36 | B106: 0.071 | C106: 0.063 | D106: 0.053 | E106: 0.038
A107: 48 | B107: 0.078 | C107: 0.072 | D107: 0.062 | E107: 0.048
A108: 60 | B108: 0.084 | C108: 0.078 | D108: 0.069 | E108: 0.056
A110: Легкові авто для Бізнесу PSA 0,0% за видачу | F110: =IF(Розрахунок!$F$14=тарифи!B111,VLOOKUP(Розрахунок!$F$16,тарифи!$A$112:$B$116,2,0),IF(Розрахунок!$F$14=тарифи!C111,VLOOKUP(Розрахунок!$F$16,тарифи!$A$112:$C$116,3,0),IF(Розрахунок!$F$14=тарифи!D111,VLOOKUP(Розрахунок!$F$16,тарифи!$A$112:$D$116,4,0),IF(Розрахунок!$F$14=тарифи!E111,VLOOKUP(Розрахунок!$F$16,тарифи!$A$112:$E$116,5,0))))) -> 0.057 | G110: 0
B111: 0.3 | C111: 0.4 | D111: 0.5 | E111: 0.6
A112: 12 | B112: 0.063 | C112: 0.052 | D112: 0.037 | E112: 0.014
A113: 24 | B113: 0.077 | C113: 0.068 | D113: 0.056 | E113: 0.039
A114: 36 | B114: 0.083 | C114: 0.076 | D114: 0.065 | E114: 0.05
A115: 48 | B115: 0.087 | C115: 0.081 | D115: 0.072 | E115: 0.057
A116: 60 | B116: 0.091 | C116: 0.085 | D116: 0.076 | E116: 0.063
A118: Легкові авто для Бізнесу Fiat 1,99% за видачу | F118: =IF(Розрахунок!$F$14=тарифи!B119,VLOOKUP(Розрахунок!$F$16,тарифи!$A$120:$B$124,2,0),IF(Розрахунок!$F$14=тарифи!C119,VLOOKUP(Розрахунок!$F$16,тарифи!$A$120:$C$124,3,0),IF(Розрахунок!$F$14=тарифи!D119,VLOOKUP(Розрахунок!$F$16,тарифи!$A$120:$D$124,4,0),IF(Розрахунок!$F$14=тарифи!E119,VLOOKUP(Розрахунок!$F$16,тарифи!$A$120:$E$124,5,0))))) -> 0.025 | G118: 0.0199
B119: 0.3 | C119: 0.4 | D119: 0.5 | E119: 0.6
A120: 12 | B120: 0.0001 | C120: 0.0001 | D120: 0.0001 | E120: 0.0001
A121: 24 | B121: 0.032 | C121: 0.02 | D121: 0.003 | E121: 0.0001
A122: 36 | B122: 0.053 | C122: 0.042 | D122: 0.029 | E122: 0.008
A123: 48 | B123: 0.063 | C123: 0.055 | D123: 0.043 | E123: 0.025
A124: 60 | B124: 0.071 | C124: 0.063 | D124: 0.053 | E124: 0.037
A126: Легкові авто для Бізнесу Fiat 0,0% за видачу | F126: =IF(Розрахунок!$F$14=тарифи!B127,VLOOKUP(Розрахунок!$F$16,тарифи!$A$128:$B$132,2,0),IF(Розрахунок!$F$14=тарифи!C127,VLOOKUP(Розрахунок!$F$16,тарифи!$A$128:$C$132,3,0),IF(Розрахунок!$F$14=тарифи!D127,VLOOKUP(Розрахунок!$F$16,тарифи!$A$128:$D$132,4,0),IF(Розрахунок!$F$14=тарифи!E127,VLOOKUP(Розрахунок!$F$16,тарифи!$A$128:$E$132,5,0))))) -> 0.034 | G126: 0
B127: 0.3 | C127: 0.4 | D127: 0.5 | E127: 0.6
A128: 12 | B128: 0.015 | C128: 0.0001 | D128: 0.0001 | E128: 0.0001
A129: 24 | B129: 0.05 | C129: 0.038 | D129: 0.021 | E129: 0.0001
A130: 36 | B130: 0.064 | C130: 0.054 | D130: 0.04 | E130: 0.02
A131: 48 | B131: 0.072 | C131: 0.064 | D131: 0.052 | E131: 0.034
A132: 60 | B132: 0.078 | C132: 0.07 | D132: 0.06 | E132: 0.044
A134: Легкові авто для Бізнесу Skoda 1,99% за видачу | F134: =IF(Розрахунок!$F$14=тарифи!B135,VLOOKUP(Розрахунок!$F$16,тарифи!$A$136:$B$140,2,0),IF(Розрахунок!$F$14=тарифи!C135,VLOOKUP(Розрахунок!$F$16,тарифи!$A$136:$C$140,3,0),IF(Розрахунок!$F$14=тарифи!D135,VLOOKUP(Розрахунок!$F$16,тарифи!$A$136:$D$140,4,0),IF(Розрахунок!$F$14=тарифи!E135,VLOOKUP(Розрахунок!$F$16,тарифи!$A$136:$E$140,5,0))))) -> 0.02 | G134: 0.0199
B135: 0.3 | C135: 0.4 | D135: 0.5 | E135: 0.6
A136: 12 | B136: 0.0001 | C136: 0.0001 | D136: 0.0001 | E136: 0.0001
A137: 24 | B137: 0.026 | C137: 0.013 | D137: 0.0001 | E137: 0.0001
A138: 36 | B138: 0.048 | C138: 0.038 | D138: 0.023 | E138: 0.001
A139: 48 | B139: 0.06 | C139: 0.051 | D139: 0.039 | E139: 0.02
A140: 60 | B140: 0.068 | C140: 0.061 | D140: 0.05 | E140: 0.033
A142: Легкові авто для Бізнесу Skoda 0,0% за видачу | F142: =IF(Розрахунок!$F$14=тарифи!B143,VLOOKUP(Розрахунок!$F$16,тарифи!$A$144:$B$148,2,0),IF(Розрахунок!$F$14=тарифи!C143,VLOOKUP(Розрахунок!$F$16,тарифи!$A$144:$C$148,3,0),IF(Розрахунок!$F$14=тарифи!D143,VLOOKUP(Розрахунок!$F$16,тарифи!$A$144:$D$148,4,0),IF(Розрахунок!$F$14=тарифи!E143,VLOOKUP(Розрахунок!$F$16,тарифи!$A$144:$E$148,5,0))))) -> 0.029 | G142: 0
B143: 0.3 | C143: 0.4 | D143: 0.5 | E143: 0.6
A144: 12 | B144: 0.004 | C144: 0.0001 | D144: 0.0001 | E144: 0.0001
A145: 24 | B145: 0.045 | C145: 0.032 | D145: 0.013 | E145: 0.0001
A146: 36 | B146: 0.061 | C146: 0.05 | D146: 0.035 | E146: 0.013
A147: 48 | B147: 0.069 | C147: 0.06 | D147: 0.048 | E147: 0.029
A148: 60 | B148: 0.076 | C148: 0.068 | D148: 0.057 | E148: 0.04
A150: Легкові авто для Бізнесу Lexus 1,99% за видачу | F150: =IF(Розрахунок!$F$14=тарифи!B151,VLOOKUP(Розрахунок!$F$16,тарифи!$A$152:$B$156,2,0),IF(Розрахунок!$F$14=тарифи!C151,VLOOKUP(Розрахунок!$F$16,тарифи!$A$152:$C$156,3,0),IF(Розрахунок!$F$14=тарифи!D151,VLOOKUP(Розрахунок!$F$16,тарифи!$A$152:$D$156,4,0),IF(Розрахунок!$F$14=тарифи!E151,VLOOKUP(Розрахунок!$F$16,тарифи!$A$152:$E$156,5,0))))) -> 0.048 | G150: 0.0199
B151: 0.3 | C151: 0.4 | D151: 0.5 | E151: 0.6
A152: 12 | B152: 0.027 | C152: 0.016 | D152: 0.0001 | E152: 0.0001
A153: 24 | B153: 0.058 | C153: 0.05 | D153: 0.038 | E153: 0.02
A154: 36 | B154: 0.071 | C154: 0.063 | D154: 0.053 | E154: 0.038
A155: 48 | B155: 0.078 | C155: 0.072 | D155: 0.062 | E155: 0.048
A156: 60 | B156: 0.084 | C156: 0.078 | D156: 0.069 | E156: 0.056
A158: Легкові авто для Бізнесу Lexus 0,0% за видачу | F158: =IF(Розрахунок!$F$14=тарифи!B159,VLOOKUP(Розрахунок!$F$16,тарифи!$A$160:$B$164,2,0),IF(Розрахунок!$F$14=тарифи!C159,VLOOKUP(Розрахунок!$F$16,тарифи!$A$160:$C$164,3,0),IF(Розрахунок!$F$14=тарифи!D159,VLOOKUP(Розрахунок!$F$16,тарифи!$A$160:$D$164,4,0),IF(Розрахунок!$F$14=тарифи!E159,VLOOKUP(Розрахунок!$F$16,тарифи!$A$160:$E$164,5,0))))) -> 0.057 | G158: 0
B159: 0.3 | C159: 0.4 | D159: 0.5 | E159: 0.6
A160: 12 | B160: 0.063 | C160: 0.052 | D160: 0.037 | E160: 0.014
A161: 24 | B161: 0.077 | C161: 0.068 | D161: 0.056 | E161: 0.039
A162: 36 | B162: 0.083 | C162: 0.076 | D162: 0.065 | E162: 0.05
A163: 48 | B163: 0.087 | C163: 0.081 | D163: 0.072 | E163: 0.057
A164: 60 | B164: 0.091 | C164: 0.085 | D164: 0.076 | E164: 0.063
